[Event "1st Bangalore GM-Open-A 2024"]
[Site "Bangalore"]
[Date "2024.01.19"]
[Round "3.15"]
[White "Aquino, Jethro Dino"]
[Black "Sethuraman, S.P."]
[Result "0-1"]
[ECO "B90"]
[WhiteElo "2166"]
[BlackElo "2594"]
[Annotator "TA"]
[PlyCount "95"]
[EventDate "2024.01.20"]
[EventType "swiss"]
[EventCountry "IND"]
[SourceTitle "playchess.com"]
[Source "ChessBase"]
[SourceQuality "1"]
[TimeControl "5400+30"]

{[%evp 15,95,16,38,18,28,16,38,5,39,39,33,16,11,-56,0,0,0,0,7,0,0,-10,14,-14,0,-10,0,0,0,0,0,0,0,-60,0,-45,-56,-75,-15,-52,-59,-140,-133,-140,-140,-140,-140,-140,-140,-140,-140,-164,-162,-279,-266,-404,-400,-402,-369,-412,-382,-521,-540,-889,-871,-881,-864,-857,-850,-759,-741,-1260,-1240,-1473,-1442,-1340,-1102,-1454,-1455,-29971,-29971,-5942]} 1. e4 {[%emt 0:00:14]} c5 {[%emt 0:00:08]} 2. Nf3 {[%emt 0:00:26]} d6 {[%emt 0:00:22]} 3. d4 {[%emt 0:00:11]} cxd4 {[%emt 0:00:06]} 4. Nxd4 {[%emt 0:00:05]} Nf6 {[%emt 0:00:04]} 5. Nc3 {[%emt 0:00:11]} a6 {[%emt 0:00:21]} 6. f3 {[%emt 0:00:38][%cal Bf2f3,Bf3f4,Bf4f5][%mdl 32]} e5 {[%emt 0:02:42]} 7. Nb3 {[%emt 0:00:07]} Be6 {[%emt 0:00:22]} 8. Be3 {[%emt 0:00:16]} h5 {[%emt 0:00:15] The modern move.} 9. Be2 {[%emt 0:00:51] B90: Sicilian Najdorf: Unusual White 6th moves, 6 Be3 Ng4 and 6 Be3 e5.} Nbd7 {[%emt 0:00:42]} 10. f4 {[%emt 0:00:49]} Qc7 {[%emt 0:09:35]} 11. h3 {[%emt 0:02:32] [#] White is slightly better.} (11. f5 $5 {[%cal Rf5e6]} Bc4 12. O-O $11) 11... h4 $146 {[%emt 0:05:49]} ({Predecessor:} 11... b5 12. a3 Nb6 13. O-O Be7 14. Qe1 Rb8 15. f5 Bd7 16. Bd3 d5 17. exd5 Nbxd5 18. Nxd5 Nxd5 {0-1 Xu,Y (2527)-Duda,J (2724) Titled Tuesday intern op 02nd May Early blitz 2023 (4)}) 12. f5 {[%emt 0:04:02]} Bc4 {[%emt 0:00:13]} 13. Bxc4 {[%emt 0:04:20]} (13. O-O {with more complications.} Be7 14. a4 d5 15. Nxd5 Nxd5 16. exd5 Nb6 17. Bxb6 Qxb6+ 18. Kh1) 13... Qxc4 {[%emt 0:00:06]} 14. Qe2 {[%emt 0:02:14]} (14. Qf3 $11) 14... Rc8 {[%emt 0:03:25]} (14... Qxe2+ $1 $15 15. Kxe2 Rc8) 15. Qxc4 $11 {[%emt 0:06:38]} Rxc4 {[%emt 0:00:15]} 16. Nd2 {[%emt 0:00:14]} Rc8 {[%emt 0:00:34]} 17. O-O-O {[%emt 0:02:54]} b5 {[%emt 0:02:39]} 18. Rhe1 {[%emt 0:04:53]} Be7 {[%emt 0:02:59]} 19. Kb1 {[%emt 0:03:30]} Bd8 {[%emt 0:06:35]} 20. Nb3 {[%emt 0:10:57] Dodges Ba5} b4 {[%emt 0:05:14]} 21. Nd5 {[%emt 0:00:27]} Nxe4 {[%emt 0:00:37]} 22. Nxb4 {[%emt 0:00:22]} a5 {[%emt 0:02:27]} 23. Nd5 {[%emt 0:01:45][%cal Ob3d4]} Ng3 {[%emt 0:01:34]} 24. Nd2 {[%emt 0:03:59]} (24. Bd2 $11) 24... Nxf5 {[%emt 0:09:19]} ({Black should play} 24... Nf6 $1 $15 25. Nc3 Nxf5) 25. Ne4 {[%emt 0:00:27]} Rc6 {[%emt 0:00:09]} 26. b3 {[%emt 0:10:36] [#]} O-O {[%emt 0:06:21]} (26... Nf6 $1 $17 {[%cal Rf6e4]} 27. Bc1 Kd7) 27. c4 {[%emt 0:02:43]} Nc5 $36 {[%emt 0:04:12][%mdl 2048] Black has the initiative.} 28. Nec3 {[%emt 0:09:04] Black keeps a firm grip on the game.} (28. Bf2 $15) 28... Nxe3 $17 {[%emt 0:01:22]} 29. Nxe3 {[%emt 0:00:07]} f5 {[%emt 0:02:21]} 30. Kc2 {[%emt 0:04:13]} Ne6 {[%emt 0:04:00]} 31. Nb5 {[%emt 0:00:27] [#]} Be7 {[%emt 0:00:41]} 32. Nd5 {[%emt 0:05:00]} Bg5 {[%emt 0:01:03]} 33. a4 {[%emt 0:05:32]} Rd8 {[%emt 0:02:24]} 34. b4 {[%emt 0:00:39]} (34. Na7 $142 Rc5 35. Nb5) 34... axb4 $19 {[%emt 0:04:08]} (34... Rxc4+ $2 {perishes.} 35. Kb3 Rc6 36. bxa5 Nc5+ 37. Ka3 $19) 35. Nxb4 {[%emt 0:00:10]} (35. Kb3 {is the only way for White.} Nc5+ 36. Kxb4) 35... Rxc4+ {[%emt 0:01:52]} 36. Kb3 {[%emt 0:00:00]} Rc5 {[%emt 0:01:44]} 37. Na6 {[%emt 0:08:11]} Rcc8 {[%emt 0:01:02]} 38. Re2 {[%emt 0:04:39]} e4 {[%emt 0:03:55] Strongly threatening ...d5.} 39. Rc2 {[%emt 0:00:41]} Rxc2 {[%emt 0:00:15]} 40. Kxc2 {[%emt 0:00:01]} d5 {[%emt 0:00:00][%cal Bd6d5,Bd5d4][%mdl 32]} 41. Nb4 {[%emt 0:00:37]} d4 {[%emt 0:00:11]} 42. Kb3 {[%emt 0:01:53]} d3 {[%emt 0:00:42]} 43. Kc4 {[%emt 0:02:05]} Rc8+ {[%emt 0:01:19]} 44. Kd5 {[%emt 0:00:59]} Nf4+ {[%emt 0:00:06]} 45. Ke5 {[%emt 0:01:11]} Nxg2 {[%emt 0:00:08] Hoping for ...d2.} 46. Nxd3 {[%emt 0:00:20]} Ne3 {[%emt 0:01:51]} 47. Ra1 {[%emt 0:01:17]} exd3 {[%emt 0:00:14]} 48. Kd4 {[%emt 0:01:03] Weighted Error Value: White=0.64/Black=0.10 (very precise)} 0-1

[Event "1st Bangalore GM-Open-A 2024"]
[Site "Bangalore"]
[Date "2024.01.19"]
[Round "3.16"]
[White "Sahoo, Utkal Ranjan"]
[Black "Ghosh, Diptayan"]
[Result "1/2-1/2"]
[ECO "E26"]
[WhiteElo "2316"]
[BlackElo "2568"]
[Annotator "TA"]
[PlyCount "42"]
[EventDate "2024.01.20"]
[EventType "swiss"]
[EventCountry "IND"]
[SourceTitle "playchess.com"]
[Source "ChessBase"]
[SourceQuality "1"]
[TimeControl "5400+30"]

{[%evp 15,42,-8,-22,-29,-10,-23,42,39,72,53,72,72,72,72,72,72,72,72,122,72,94,84,102,87,88,0,106,0,88]} 1. d4 {[%emt 0:00:03]} Nf6 {[%emt 0:00:25]} 2. c4 {[%emt 0:00:06]} e6 {[%emt 0:00:06]} 3. Nc3 {[%emt 0:00:10]} Bb4 {[%emt 0:00:12]} 4. a3 {[%emt 0:00:53]} Bxc3+ {[%emt 0:00:11]} 5. bxc3 {[%emt 0:00:01]} c5 {[%emt 0:02:30]} 6. e3 {[%emt 0:02:04]} b6 {[%emt 0:07:44]} 7. Bd3 {[%emt 0:00:53]} Bb7 {[%emt 0:00:29]} 8. f3 {[%emt 0:00:20]} Nc6 {[%emt 0:04:08]} 9. Ne2 {[%emt 0:00:08] E26: Nimzo-Indian: Sämisch: 5...c5 6 e3.} d6 {[%emt 0:03:15]} 10. e4 {[%emt 0:00:27]} e5 {[%emt 0:02:25]} ({Better is} 10... Na5 $11) 11. d5 $14 {[%emt 0:01:17] [#] White is slightly better.} Ne7 $146 {[%emt 0:02:29]} ({Predecessor:} 11... Na5 12. Ng3 Bc8 13. Ra2 Qe7 14. O-O Bd7 15. Rb2 O-O-O 16. h3 Ne8 17. Nf5 Bxf5 18. exf5 {½-½ Pavlidou,E (2088)-Akin,T (1683) NATO-ch 33rd 2023 (7)}) 12. O-O {[%emt 0:01:11]} Ng6 {[%emt 0:01:48]} 13. Be3 {[%emt 0:00:37]} Bc8 {[%emt 0:01:47]} 14. Qd2 {[%emt 0:02:29]} h6 {[%emt 0:06:47]} 15. Ng3 {[%emt 0:03:00] White is more active.} Bd7 {[%emt 0:03:59]} 16. a4 {[%emt 0:02:43]} a5 {[%emt 0:01:34]} (16... O-O $142) 17. Ra2 {[%emt 0:03:47]} (17. Nf5 $142) 17... Qc7 {[%emt 0:04:39]} 18. Rb1 {[%emt 0:00:32]} Ra6 {[%emt 0:00:15]} 19. Rf1 {[%emt 0:00:05]} Ra8 {[%emt 0:00:03]} 20. Rb1 {[%emt 0:00:05]} Ra6 $1 {[%emt 0:00:06]} 21. Rf1 {[%emt 0:00:04]} Ra8 $1 {[%emt 0:00:36] Weighted Error Value: White=0.24 (precise) /Black=0.18 (very precise)} 1/2-1/2

[Event "1st Bangalore GM-Open-A 2024"]
[Site "Bangalore"]
[Date "2024.01.19"]
[Round "3.17"]
[White "Lalit Babu M R"]
[Black "Karthikeyan, P.."]
[Result "0-1"]
[ECO "A13"]
[WhiteElo "2525"]
[BlackElo "2287"]
[Annotator "TA"]
[PlyCount "73"]
[EventDate "2024.01.20"]
[EventType "swiss"]
[EventCountry "IND"]
[SourceTitle "playchess.com"]
[Source "ChessBase"]
[SourceQuality "1"]
[TimeControl "5400+30"]

{[%evp 14,73,0,4,22,8,10,24,39,11,41,0,0,-39,0,0,0,0,0,-24,-28,-36,-15,-39,0,-16,-13,-58,-99,-114,-111,-118,-115,-221,-230,-283,-158,-160,-159,-155,-164,-210,-184,-204,-189,-408,-388,-427,-169,-185,-165,-193,-139,-397,-392,-391,-396,-544,-578,-571,-565,-1022]} 1. Nf3 {[%emt 0:00:05]} Nf6 {[%emt 0:09:07]} 2. c4 {[%emt 0:00:10]} e6 {[%emt 0:00:22]} 3. g3 {[%emt 0:00:07]} d5 {[%emt 0:00:52]} 4. Bg2 {[%emt 0:00:04]} d4 {[%emt 0:02:40]} 5. e3 {[%emt 0:01:27]} c5 {[%emt 0:00:53]} 6. exd4 {[%emt 0:00:10]} cxd4 {[%emt 0:00:06]} 7. O-O {[%emt 0:00:03]} Nc6 {[%emt 0:00:18]} 8. d3 {[%emt 0:00:16]} Be7 {[%emt 0:03:43] A13: English Opening: 1...e6.} 9. Re1 {[%emt 0:01:06]} O-O {[%emt 0:00:55]} 10. Na3 {[%emt 0:00:05]} Ne8 {[%emt 0:02:50] [#] White has an edge. has lost popularity (10...Nd7).} 11. Bd2 $146 {[%emt 0:06:53]} ({Predecessor:} 11. Nc2 f6 12. b4 Bxb4 13. Nxb4 Nxb4 14. Qb3 Nc6 15. Ba3 Rf7 16. c5 Qa5 17. Rad1 {0-1 Ding,L (2777)-Korobov,A (2652) Huaian IMSA Basque 2nd rapid 2017 (5.1)}) 11... Nc7 {[%emt 0:03:44]} 12. Rc1 {[%emt 0:09:03]} f6 {[%emt 0:03:01]} 13. Nb5 {[%emt 0:19:22]} e5 {[%emt 0:01:41]} 14. Nxc7 {[%emt 0:00:19]} Qxc7 {[%emt 0:00:03]} 15. Nh4 {[%emt 0:00:07] Threatens to win with Bd5+.} g5 {[%emt 0:02:32]} 16. Bd5+ {[%emt 0:01:22]} (16. Be4 $5) 16... Kh8 {[%emt 0:01:30]} 17. Ng2 {[%emt 0:00:48]} Bf5 {[%emt 0:01:38]} 18. Qe2 {[%emt 0:03:33]} Rae8 {[%emt 0:04:12]} 19. h4 {[%emt 0:01:54]} Nb4 {[%emt 0:13:25]} 20. Be4 {[%emt 0:13:16]} Bxe4 {[%emt 0:02:34]} 21. dxe4 {[%emt 0:00:20][%cal Oc4c5]} Nxa2 {[%emt 0:02:37] Black is more active.} 22. Ra1 {[%emt 0:00:23]} Nb4 {[%emt 0:00:25]} 23. Rxa7 {[%emt 0:00:09] [#]} (23. hxg5 $17 fxg5 24. Bxb4 Bxb4 25. Rf1) 23... Na6 $1 $19 {[%emt 0:02:35]} 24. c5 {[%emt 0:08:25]} Qb8 {[%emt 0:02:28]} ({Inferior is} 24... Nxc5 25. Qb5 $17) ({Better is} 24... Bxc5 $19 25. Rxa6 (25. Qxa6 $2 Bxa7 26. Qd3 Qe7 $19) 25... bxa6 26. Qxa6 Rb8) 25. Rxa6 $17 {[%emt 0:00:11]} bxa6 {[%emt 0:00:02]} 26. b4 {[%emt 0:00:06]} Qb5 {[%emt 0:01:22]} 27. Kf1 {[%emt 0:02:03]} (27. Qg4 {keeps fighting.}) 27... Qxe2+ {[%emt 0:02:38]} 28. Kxe2 {[%emt 0:00:07]} f5 {[%emt 0:00:34]} 29. hxg5 $2 {[%emt 0:02:51]} (29. exf5 gxh4 30. Nxh4) 29... fxe4 $19 {[%emt 0:00:44][%cal Oa6a5] ...a5! would be deadly.} 30. Rh1 {[%emt 0:00:12] [#]} e3 $2 {[%emt 0:05:44]} 31. fxe3 {[%emt 0:04:25]} Bxg5 {[%emt 0:00:40][%cal Od4d3] Strongly threatening ...d3+!} 32. Nh4 {[%emt 0:01:58]} Re6 {[%emt 0:04:23] Repels Ng6+} (32... Kg8 $19 33. Rd1 Rd8 34. exd4 Bxh4 35. gxh4 Rxd4) 33. Rc1 $2 {[%emt 0:00:59][%mdl 8192] White does not recover from this.} (33. Rh2 $17) 33... Ref6 {[%emt 0:03:05]} 34. Kd3 {[%emt 0:03:46]} Rf2 {[%emt 0:03:32]} 35. Rh1 {[%emt 0:00:55] [#]} e4+ $1 {[%emt 0:02:04]} 36. Kxe4 {[%emt 0:00:41] Ng6+ is the strong threat.} Bxh4 {[%emt 0:01:26]} ({Stronger than} 36... Rxd2 37. Ng6+ Kg8 38. Nxf8 Kxf8 39. exd4 $11) 37. Kxd4 {[%emt 0:00:14] Weighted Error Value: White=0.51/Black=0.28 (precise)} 0-1

[Event "1st Bangalore GM-Open-A 2024"]
[Site "Bangalore"]
[Date "2024.01.19"]
[Round "3.18"]
[White "Apoorv Kamble"]
[Black "Fawzy, Adham"]
[Result "1/2-1/2"]
[ECO "B33"]
[WhiteElo "2308"]
[BlackElo "2522"]
[Annotator "TA"]
[PlyCount "129"]
[EventDate "2024.01.20"]
[EventType "swiss"]
[EventCountry "IND"]
[SourceTitle "playchess.com"]
[Source "ChessBase"]
[SourceQuality "1"]
[TimeControl "5400+30"]

{[%evp 24,129,9,-17,6,5,17,-5,0,0,0,-23,-18,-22,-18,-27,0,0,6,-12,26,16,6,-126,-111,-116,-113,-113,-118,-190,-189,-180,-144,-141,-118,-108,-113,-243,-258,-250,-253,-254,-255,-229,-220,-237,-203,-345,-339,-337,-314,-406,-362,-448,-420,-488,-488,-517,-8,-8,-8,-8,0,-8,-8,-8,-8,-112,-112,-112,-112,-112,-112,-112,-112,-4133,-2373,-2637,-2453,-1799,-1780,-985,-835,-397,-109,-109,-119,-126,0,-8,0,-8,0,0,0,0,0,0,0,0,0,0,0,-8,-8,-8,0,-8]} 1. e4 {[%emt 0:00:53]} c5 {[%emt 0:00:04]} 2. Nf3 {[%emt 0:00:02]} Nc6 {[%emt 0:00:17]} 3. d4 {[%emt 0:00:05]} cxd4 {[%emt 0:00:42]} 4. Nxd4 {[%emt 0:00:04]} e5 {[%emt 0:00:50]} 5. Nb5 {[%emt 0:00:20]} d6 {[%emt 0:00:03]} 6. Bc4 {[%emt 0:01:44]} a6 {[%emt 0:08:29]} 7. N5c3 {[%emt 0:00:35]} Nf6 {[%emt 0:03:11]} 8. Bg5 {[%emt 0:03:22]} Be7 {[%emt 0:01:09]} 9. a4 {[%emt 0:01:30]} Be6 {[%emt 0:03:14]} 10. Na3 {[%emt 0:03:43]} Rc8 {[%emt 0:02:11]} 11. Bxf6 {[%emt 0:02:04]} Bxf6 {[%emt 0:01:19]} 12. O-O {[%emt 0:00:48]} O-O {[%emt 0:03:53]} 13. Bd5 {[%emt 0:09:55]} Rc7 {[%emt 0:06:38] B33: Sicilian: Pelikan and Sveshnikov Variations.} 14. Nc4 {[%emt 0:07:56]} Nd4 {[%emt 0:02:58]} 15. Ne3 {[%emt 0:00:59]} Bg5 {[%emt 0:02:43] [#]} 16. Qd3 $146 {[%emt 0:03:02]} ({Predecessor:} 16. Re1 g6 17. Qd3 Kh8 18. Rad1 Bh6 19. Nf1 Bg4 20. f3 Be6 21. Ng3 Qg5 22. Kh1 {0-1 Sarakauskiene,Z (2188)-Harika,D (2461) WMSG Rapid Pair 1st 2008 (4)}) 16... Rc5 {[%emt 0:09:17]} 17. Kh1 {[%emt 0:13:09]} (17. Nf5 {keeps more tension.} Qb6 18. a5 Qc7 19. Rfd1) 17... Qc8 {[%emt 0:05:52]} 18. Ra3 {[%emt 0:04:37]} g6 {[%emt 0:06:17]} 19. Ba2 {[%emt 0:09:19]} Bxa2 {[%emt 0:07:53]} 20. Rxa2 {[%emt 0:00:13]} f5 {[%emt 0:00:21]} 21. Ned5 {[%emt 0:02:31]} fxe4 {[%emt 0:02:36][%mdl 64] [#] Remove Defender, Deflection} 22. Nxe4 {[%emt 0:01:43]} Rxd5 {[%emt 0:01:53]} 23. Nxg5 {[%emt 0:01:22]} (23. b4 $1 $11 {keeps the balance.}) 23... Qxc2 $17 {[%emt 0:02:17]} 24. Qh3 {[%emt 0:01:19][%csl Gg5][%cal Rh3h7]} Qc7 {[%emt 0:01:21][%cal Of8f2] White must now prevent ...Rxf2!} (24... Rxf2 $2 25. Qxh7+ Kf8 26. Raa1 $18) 25. b4 {[%emt 0:05:23]} a5 {[%emt 0:03:01]} 26. b5 {[%emt 0:11:51]} (26. Ne6 $17 Nxe6 27. Qxe6+ Qf7 28. Qxf7+ Kxf7 29. bxa5) 26... Rc5 $19 {[%emt 0:01:25]} 27. Raa1 {[%emt 0:00:46]} Qe7 {[%emt 0:04:47]} 28. Ne4 {[%emt 0:01:56]} Rc2 {[%emt 0:01:34]} 29. Qa3 {[%emt 0:02:54]} Qh4 {[%emt 0:04:20]} 30. Nxd6 {[%emt 0:02:42]} (30. Ng3 $17 {was necessary.}) 30... Rfxf2 {[%emt 0:05:31]} ({Stronger than} 30... Rcxf2 31. Rxf2 Qxf2 32. Qd3 $17) 31. Rxf2 {[%emt 0:01:03]} Qxf2 $40 {[%emt 0:01:13][%csl Gc2][%cal Rf2g2][%mdl 128] Black wants a kill.} (31... Rxf2 32. Qc5 $11) 32. Qg3 {[%emt 0:02:56]} Qxg3 {[%emt 0:03:12]} 33. hxg3 {[%emt 0:00:04][%mdl 4096] Endgame KRN-KRN} b6 {[%emt 0:00:05]} 34. Re1 {[%emt 0:01:04]} Ne2 {[%emt 0:01:06]} 35. Kh2 {[%emt 0:00:06] [#]} (35. Ne4 $142) 35... Kf8 $1 {[%emt 0:00:25]} 36. Ne4 {[%emt 0:04:13]} Ke7 {[%emt 0:00:26] Against Nf6} 37. Nf2 {[%emt 0:01:38]} Ke6 {[%emt 0:02:03]} 38. Ng4 {[%emt 0:00:12]} Ra2 {[%emt 0:00:20]} 39. Ne3 {[%emt 0:01:05]} Nd4 {[%emt 0:00:19] ...Nf3+ is the strong threat.} 40. Kh3 {[%emt 0:00:30]} Re2 $2 {[%emt 0:01:34]} ({Black should play} 40... Rxa4 $19 41. Ng4 Ra2 42. Rxe5+ Kd6) 41. Rxe2 $11 {[%emt 0:00:16]} Nxe2 {[%emt 0:00:01] KN-KN} 42. Nc4 {[%emt 0:00:07]} e4 {[%emt 0:00:11]} 43. Kh2 {[%emt 0:00:25]} Nc3 {[%emt 0:03:24]} 44. Nxb6 {[%emt 0:00:08]} Kd6 {[%emt 0:01:22][%cal Oc3b5] aiming for ...Nxb5!} 45. Nc4+ {[%emt 0:00:22]} (45. Kg1 $1 $11 {was the only way to keep the balance.}) 45... Kc5 $17 {[%emt 0:00:17]} 46. b6 {[%emt 0:01:55] Threatens to win with b7.} Kc6 {[%emt 0:00:10]} (46... Kxc4 $2 47. b7 $18) 47. Nxa5+ {[%emt 0:00:32]} Kxb6 {[%emt 0:00:02]} 48. Nc4+ {[%emt 0:00:00]} Kc5 {[%emt 0:00:15]} 49. Nd2 {[%emt 0:00:51][%mdl 8192]} (49. Nb2 $17) 49... e3 $19 {[%emt 0:01:05]} ({Not} 49... Nxa4 50. Nxe4+ Kd4 51. Nf6 $11) 50. Nf3 {[%emt 0:00:01]} Nxa4 {[%emt 0:00:09]} 51. Kg1 {[%emt 0:00:01]} Kd5 {[%emt 0:00:53] ...Nc5 would be deadly.} 52. Kf1 {[%emt 0:00:12]} Nc3 {[%emt 0:00:12]} 53. Ke1 {[%emt 0:00:33]} Ke4 $2 {[%emt 0:01:05]} (53... h5 $19 {and Black stays clearly on top.} 54. Nh4 Ke4 55. Nxg6 Nd5) 54. Ng5+ $17 {[%emt 0:01:13]} Kd3 {[%emt 0:00:01]} 55. Nxh7 {[%emt 0:00:59]} Nd5 {[%emt 0:00:16]} (55... Ne2 $17 {[%cal Oe2d4] ( -> ...Nd4!)} 56. Ng5 Nxg3) 56. Ng5 $11 {[%emt 0:00:08] The position is equal.} Nb4 {[%emt 0:00:08]} 57. Nf3 {[%emt 0:00:01]} Nc2+ {[%emt 0:00:10]} 58. Kf1 {[%emt 0:00:06]} g5 {[%emt 0:02:17]} 59. g4 {[%emt 0:00:01]} Ke4 {[%emt 0:00:40]} 60. Nxg5+ {[%emt 0:00:42]} Kf4 {[%emt 0:00:00]} 61. Nf3 {[%emt 0:00:37]} Kxg4 {[%emt 0:00:01]} 62. Ke2 {[%emt 0:00:28]} Kg3 {[%emt 0:00:23]} 63. Nd4 {[%emt 0:00:31][%mdl 64] Deflection} Nxd4+ {[%emt 0:00:03]} 64. Kxe3 {[%emt 0:00:02]} Kxg2 {[%emt 0:00:09]} 65. Ke4 {[%emt 0:00:14] Black had all chances to win.   Weighted Error Value: White=0.36/Black=0.29 (precise)} 1/2-1/2

[Event "1st Bangalore GM-Open-A 2024"]
[Site "Bangalore"]
[Date "2024.01.19"]
[Round "3.19"]
[White "Iniyan, Pa"]
[Black "Luong Phuong Hanh"]
[Result "1-0"]
[ECO "D85"]
[WhiteElo "2515"]
[BlackElo "2102"]
[Annotator "TA"]
[PlyCount "67"]
[EventDate "2024.01.20"]
[EventType "swiss"]
[EventCountry "IND"]
[SourceTitle "playchess.com"]
[Source "ChessBase"]
[SourceQuality "1"]
[TimeControl "5400+30"]

{[%evp 23,67,46,51,49,33,41,37,22,24,31,25,21,31,19,39,0,77,75,60,47,74,42,102,99,174,171,172,175,163,170,169,170,180,162,379,362,533,525,744,657,657,653,653,644,637,620]} 1. d4 {[%emt 0:01:11]} Nf6 {[%emt 0:00:54]} 2. c4 {[%emt 0:00:11]} g6 {[%emt 0:00:05]} 3. Nc3 {[%emt 0:00:07]} d5 {[%emt 0:00:05]} 4. cxd5 {[%emt 0:00:06]} Nxd5 {[%emt 0:00:05]} 5. e4 {[%emt 0:00:09]} Nxc3 {[%emt 0:00:06]} 6. bxc3 {[%emt 0:00:05]} Bg7 {[%emt 0:00:05]} 7. Nf3 {[%emt 0:00:09]} O-O {[%emt 0:00:06]} 8. Be2 {[%emt 0:00:06]} c5 {[%emt 0:00:04]} 9. O-O {[%emt 0:00:15]} Nc6 {[%emt 0:02:11]} 10. Be3 {[%emt 0:09:10]} cxd4 {[%emt 0:04:38]} 11. cxd4 {[%emt 0:00:08]} Bg4 {[%emt 0:00:23]} 12. d5 {[%emt 0:00:07]} Ne5 {[%emt 0:00:50]} 13. Nxe5 {[%emt 0:04:59][%mdl 64] [#] Discovered Attack. D85: Exchange Grünfeld: Unusual White 7th moves and lines with 7 Nf3.} Bxe2 {[%emt 0:00:09]} 14. Qxe2 {[%emt 0:00:07]} Bxe5 {[%emt 0:00:07]} 15. Rab1 {[%emt 0:00:11] White is slightly better.} b6 {[%emt 0:02:24]} 16. f4 {[%emt 0:00:09]} Bg7 {[%emt 0:00:13]} 17. Qb5 {[%emt 0:05:17]} Rc8 {[%emt 0:02:53]} 18. Rfc1 {[%emt 0:02:01]} Qd6 {[%emt 0:00:38] [#]} 19. Qa4 $146 {[%emt 0:00:56]} (19. e5 $5 {[%cal Re5d6]} Qa3 20. Qb3 Qxb3 21. axb3 $14 (21. Rxb3 Rxc1+ 22. Bxc1 Rd8 $11)) ({Predecessor:} 19. Qb3 e6 20. dxe6 Qxe6 21. Qxe6 fxe6 22. Rxc8 Rxc8 23. Rd1 Rc7 24. Kf2 Kf7 25. g4 Bf8 26. Rc1 Rxc1 {½-½ Becker,J-Englund,H SWE-ch40 corr 1980}) 19... e6 {[%emt 0:07:27]} (19... Bh6 $11) 20. Qxa7 {[%emt 0:29:43]} exd5 {[%emt 0:00:10]} 21. e5 {[%emt 0:00:07]} (21. Rxb6 $2 Rxc1+ 22. Kf2 Rc2+ 23. Kg3 Qd8 $19) 21... Qe6 {[%emt 0:00:58]} 22. Qxb6 {[%emt 0:02:29] White has more active pieces.} (22. Bxb6 Ra8 23. Qb7 Rfb8 $11) (22. Rxb6 Rxc1+ 23. Bxc1 Qc8 $14) 22... Qf5 {[%emt 0:00:15] Black is weak on the dark squares} ({Black should play} 22... Rxc1+ $14 23. Rxc1 g5) 23. Qd4 $16 {[%emt 0:10:44]} Rfd8 {[%emt 0:01:08]} (23... g5 $16) 24. a4 $18 {[%emt 0:00:14]} Bf8 {[%emt 0:03:20][%cal Oc8c4] [#]} 25. Ra1 $1 {[%emt 0:03:19]} Rb8 {[%emt 0:04:19]} 26. a5 {[%emt 0:02:29] a6 would be deadly.} Rb4 {[%emt 0:00:22]} 27. Qd2 {[%emt 0:00:40] Black must now prevent a6.} d4 {[%emt 0:05:09]} 28. a6 {[%emt 0:00:10] Hoping for a7.} Rb3 $2 {[%emt 0:12:01]} (28... Rbb8 {was necessary.}) 29. Bf2 {[%emt 0:04:02]} (29. Bxd4 Rd3 30. Qc2 R3xd4 31. Qxf5 gxf5 $11) 29... Bb4 {[%emt 0:01:26]} (29... Ra8 $142 30. a7 (30. Bxd4 Ba3 $18) (30. Qxd4 Ra3 $18) 30... d3) 30. Qd1 {[%emt 0:00:18] White is clearly winning.} Rb2 {[%emt 0:01:45]} 31. a7 {[%emt 0:01:14]} ({Weaker is} 31. Bxd4 Rd2 32. Qf3 R2xd4 $14) 31... Qxf4 {[%emt 0:08:37]} 32. Rc2 {[%emt 0:00:16]} (32. a8=R $2 {leads to mate.} Qxf2+ 33. Kh1 Qxg2#) 32... Rxc2 {[%emt 0:01:01]} 33. Qxc2 {[%emt 0:00:11]} d3 {[%emt 0:01:29]} 34. a8=Q {[%emt 0:00:53] Weighted Error Value: White=0.11 (very precise) /Black=0.45} (34. a8=R $2 {perishes.} dxc2 35. Rxd8+ Kg7 $19) 1-0